fUSD/lending_fUSD_20240503
["ID","MTS","AMOUNT","RATE_DAILY","PERIOD"]
[325312073,1714697451142,-1160.909453,0.0002808,7]
[325312074,1714697451152,-151.0,0.0002808,7]
[325312075,1714697451163,-1160.909453,0.0002808,7]
[325312076,1714697451173,-151.0,0.0002808,7]
[325312077,1714697451183,-151.0,0.0002808,7]
[325312078,1714697451194,-258.510612,0.0002808,7]
[325312079,1714697451204,-151.0,0.0002808,7]
[325312080,1714697451214,-151.0,0.0002808,7]
[325312081,1714697451224,-258.510612,0.0002808,7]
[325312082,1714697451234,-151.0,0.0002808,7]
[325312083,1714697451244,-151.0,0.0002808,7]
[325312084,1714697451254,-618.82358,0.0002808,7]
[325312085,1714697451265,-618.82358,0.0002808,7]
[325312086,1714697451275,-801.736964,0.0002808,7]
[325312087,1714697451285,-801.736964,0.0002808,7]
[325312088,1714697451295,-151.0,0.0002808,7]
[325312089,1714697451304,-151.0,0.0002808,7]
[325312090,1714697451315,-151.0,0.0002808,7]
[325312091,1714697451325,-151.0,0.0002808,7]
[325312092,1714697451336,-1935.528746,0.0002808,7]
[325312093,1714697451346,-1935.528746,0.0002808,7]
[325312094,1714697451356,-151.0,0.0002808,7]
[325312095,1714697451366,-151.0,0.0002808,7]
[325312096,1714697451376,-253.713979,0.0002808,7]
[325312097,1714697451386,-253.713979,0.0002808,7]
[325312098,1714697451396,-1496.944936,0.0002808,7]
[325312099,1714697451407,-151.0,0.0002808,7]
[325312100,1714697451417,-151.0,0.0002808,7]
[325312101,1714697451427,-1496.944936,0.0002808,7]
[325312102,1714697451437,-195.927644,0.0002808,7]
[325312103,1714697451447,-195.927644,0.0002808,7]
[325312104,1714697451458,-190.70729,0.0002808,7]
[325312105,1714697451468,-190.70729,0.0002808,7]
[325312106,1714697451478,-275.874687,0.0002808,7]
[325312107,1714697451489,-275.874687,0.0002808,7]
[325312108,1714697451500,-151.507262,0.0002808,7]
[325312109,1714697451510,-246.0,0.0002817,2]
[325312110,1714697451521,-279.06036109,0.00028173,2]
[325312111,1714697451532,-151.4079542,0.00028196,2]
[325312112,1714697451543,-262.80484228,0.00028215,2]
[325312113,1714697451554,-214.26144872,0.00028215,2]
[325312114,1714697451564,-8359.85318513,0.00028215,2]
[325312115,1714697451575,-19423.22,0.00028217,2]
[325312116,1714697451585,-150.0,0.00028219,2]
[325312117,1714697451596,-151.0,0.00028457,7]
[325312118,1714697451607,-151.0,0.00028457,7]
[325312119,1714697451619,-151.0,0.00028457,7]
[325312120,1714697451630,-151.0,0.00028457,7]
[325312121,1714697451642,-151.0,0.00028457,7]
[325312122,1714697451653,-202.524,0.00028457,7]
[325312123,1714697451664,-151.0,0.00028457,7]
[325312124,1714697451675,-202.524,0.00028457,7]
[325312125,1714697451687,-151.0,0.00028457,7]
[325312126,1714697451699,-180.361225,0.00028457,7]
[325312127,1714697451709,-151.0,0.00028457,7]
[325312128,1714697451720,-180.361225,0.00028457,7]
[325312129,1714697451731,-151.0,0.00028457,7]
[325312130,1714697451742,-151.0,0.00028457,7]
[325312131,1714697451753,-151.0,0.00028457,7]
[325312132,1714697451763,-151.0,0.00028457,7]
[325312133,1714697451774,-151.0,0.00028457,7]
[325312134,1714697451785,-151.0,0.00028457,7]
[325312135,1714697451796,-151.0,0.00028457,7]
[325312136,1714697451807,-151.0,0.00028457,7]
[325312137,1714697451818,-151.0,0.00028457,7]
[325312138,1714697451831,-314.161695,0.00028457,7]
[325312139,1714697451841,-314.161695,0.00028457,7]
[325312140,1714697451854,-151.0,0.00028457,7]
[325312141,1714697451864,-151.0,0.00028457,7]
[325312142,1714697451874,-151.0,0.00028457,7]
[325312143,1714697451885,-151.0,0.00028457,7]
[325312144,1714697451896,-151.0,0.00028457,7]
[325312145,1714697451906,-376.083572,0.00028457,7]
[325312146,1714697451916,-151.0,0.00028457,7]
[325312147,1714697451929,-343.045613,0.00028457,7]
[325312148,1714697451939,-343.045613,0.00028457,7]
[325312149,1714697451950,-209.963398,0.00028457,7]
[325312150,1714697451961,-209.963398,0.00028457,7]
[325312151,1714697451971,-151.0,0.00028457,7]
[325312152,1714697451982,-151.0,0.00028457,7]
[325312153,1714697451993,-151.0,0.00028462,7]
[325312154,1714697452004,-374.427343,0.00028462,7]
[325312155,1714697452017,-374.427343,0.00028462,7]
[325312156,1714697452028,-374.945143,0.00028462,7]
[325312157,1714697452039,-374.945143,0.00028462,7]
[325312158,1714697452051,-220.118611,0.00028462,7]
[325312159,1714697452062,-151.031651,0.00028462,7]
[325312160,1714697452073,-151.0,0.00028462,7]
[325312161,1714697452084,-1312.979562,0.00028462,7]
[325312162,1714697452095,-1312.979562,0.00028462,7]
[325312163,1714697452107,-870.320538,0.00028462,7]
[325312164,1714697452117,-870.320538,0.00028462,7]
[325312165,1714697452128,-151.0,0.00028462,7]
[325312166,1714697452138,-151.0,0.00028462,7]
[325312167,1714697452148,-1063.140794,0.00028462,7]
[325312168,1714697452159,-552.356475,0.00028462,7]
[325312169,1714697452170,-1063.140794,0.00028462,7]
[325312170,1714697452180,-552.356475,0.00028462,7]
[325312171,1714697452192,-151.0,0.00028462,7]
[325312172,1714697452207,-151.0,0.00028462,7]
[325312173,1714697452223,-1251.801312,0.00028462,7]
[325312174,1714697452238,-1251.801312,0.00028462,7]
[325312175,1714697452252,-151.0,0.00028462,7]
[325312176,1714697452263,-151.0,0.00028462,7]
[325312177,1714697452278,-193.845562,0.00028462,7]
[325312178,1714697452291,-151.0,0.00028462,7]
[325312179,1714697452305,-151.0,0.00028462,7]
[325312180,1714697452319,-193.845562,0.00028462,7]
[325312181,1714697452334,-151.0,0.00028462,7]
[325312182,1714697452349,-151.0,0.00028462,7]
[325312183,1714697452364,-151.0,0.00028462,7]
[325312184,1714697452378,-151.0,0.00028462,7]
[325312185,1714697452391,-151.0,0.00028462,7]
[325312186,1714697452408,-151.0,0.00028462,7]
[325312187,1714697452422,-379.269962,0.00028462,7]
[325312188,1714697452433,-379.269962,0.00028462,7]
[325312189,1714697452446,-151.0,0.00028462,7]
[325312190,1714697452459,-270.997362,0.00028462,7]
[325312191,1714697452473,-151.0,0.00028462,7]
[325312192,1714697452488,-270.997362,0.00028462,7]
[325312193,1714697452503,-151.0,0.00028462,7]
[325312194,1714697452519,-151.0,0.00028462,7]
[325312195,1714697452531,-151.0,0.00028462,7]
[325312196,1714697452542,-291.447218,0.00028462,7]
[325312197,1714697452554,-6244.331862,0.00028462,7]
[325312198,1714697452567,-291.447218,0.00028462,7]
[325312199,1714697452580,-1534.8643,0.00028462,7]
[325312200,1714697452593,-6244.331862,0.00028462,7]
[325312201,1714697452604,-1534.8643,0.00028462,7]
[325312202,1714697452616,-151.0,0.00028462,7]
[325312203,1714697452630,-1127.664807,0.00028462,7]
[325312204,1714697452642,-1127.664807,0.00028462,7]
[325312205,1714697452653,-1160.909453,0.00028462,7]
[325312206,1714697452663,-151.0,0.00028462,7]
[325312207,1714697452676,-1160.909453,0.00028462,7]
[325312208,1714697452687,-151.0,0.00028462,7]
[325312209,1714697452700,-151.0,0.00028462,7]
[325312210,1714697452711,-258.510612,0.00028462,7]
[325312211,1714697452723,-151.0,0.00028462,7]
[325312212,1714697452734,-258.510612,0.00028462,7]
[325312213,1714697452746,-151.0,0.00028462,7]
[325312214,1714697452757,-618.82358,0.00028462,7]
[325312215,1714697452769,-618.82358,0.00028462,7]
[325312216,1714697452781,-801.736964,0.00028462,7]
[325312217,1714697452793,-801.736964,0.00028462,7]
[325312218,1714697452805,-151.0,0.00028471,7]
[325312219,1714697452817,-151.0,0.00028471,7]
[325312220,1714697452833,-151.0,0.00028471,7]
[325312221,1714697452844,-202.524,0.00028471,7]
[325312222,1714697452855,-151.0,0.00028471,7]
[325312223,1714697452867,-202.524,0.00028471,7]
[325312224,1714697452879,-180.361225,0.00028471,7]
[325312225,1714697452891,-151.405263,0.00028471,7]
[325312226,1714697452903,-180.361225,0.00028471,7]
[325312227,1714697452916,-151.0,0.00028471,7]
[325312228,1714697452929,-151.0,0.00028471,7]
[325312229,1714697452940,-151.0,0.00028471,7]
[325312230,1714697452952,-151.0,0.00028471,7]
[325312231,1714697452969,-151.0,0.00028471,7]
[325312232,1714697452981,-151.0,0.00028471,7]
[325312233,1714697452992,-151.0,0.00028476,7]
[325312234,1714697453005,-151.0,0.00028476,7]
[325312235,1714697453017,-1044.21,0.000285,2]
[325312236,1714697453029,-12198.2238046,0.00028507,2]
[325312237,1714697453040,-1946.0967164,0.00028507,2]
[325312238,1714697453052,-139479.3241656,0.00028507,2]
[325312239,1714697453063,-151.0,0.00028507,7]
[325312240,1714697453075,-151.0,0.00028507,7]
[325312241,1714697453087,-151.298406,0.00028507,7]
[325312242,1714697453104,-151.0,0.00028507,7]
[325312243,1714697453117,-440.0,0.00028507,7]
[325312244,1714697453129,-440.0,0.00028507,7]
[325312245,1714697453141,-533.976068,0.00028507,7]
[325312246,1714697453153,-158.659549,0.00028507,7]
[325312247,1714697453165,-533.976068,0.00028507,7]
[325312248,1714697453177,-151.0,0.00028507,7]
[325312249,1714697453190,-151.0,0.00028526,7]
[325312250,1714697453203,-151.0,0.00028526,7]
[325312251,1714697453216,-151.0,0.00028526,7]
[325312252,1714697453228,-314.161695,0.00028526,7]
[325312253,1714697453240,-314.161695,0.00028526,7]
[325312254,1714697453252,-151.0,0.00028526,7]
[325312255,1714697453264,-151.0,0.00028526,7]
[325312256,1714697453276,-151.0,0.00028526,7]
[325312257,1714697453288,-151.0,0.00028526,7]
[325312258,1714697453300,-151.0,0.00028526,7]
[325312259,1714697453311,-376.083572,0.00028526,7]
[325312260,1714697453323,-151.357118,0.00028526,7]
[325312261,1714697453335,-343.045613,0.00028526,7]
[325312262,1714697453347,-343.045613,0.00028526,7]
[325312263,1714697453358,-209.963398,0.00028526,7]
[325312264,1714697453371,-209.963398,0.00028526,7]
[325312265,1714697453382,-151.0,0.00028526,7]
[325312266,1714697453394,-283.924211,0.00028526,7]
[325312267,1714697453406,-151.0,0.00028526,7]
[325312268,1714697453418,-151.0,0.00028526,7]
[325312269,1714697453430,-151.0,0.00028526,7]
[325312270,1714697453441,-440.0,0.00028526,7]
[325312271,1714697453453,-440.0,0.00028526,7]
[325312272,1714697453465,-533.976068,0.00028526,7]
[325312273,1714697453479,-533.976068,0.00028526,7]
[325312274,1714697453491,-151.0,0.00028526,7]
[325312275,1714697453504,-1018573.82653005,0.00028528,30]
[325312276,1714697454276,-17930.80278851,0.00028528,30]
[325312277,1714697455603,-272.15726605,0.00028528,30]
[325312278,1714697455618,-590.59,0.00028528,30]
[325312279,1714697456409,-220.927,0.00017692,2]
[325312280,1714697456418,-299.120943,0.0002808,7]
[325312281,1714697456428,-16634.07323353,0.00028528,30]
[325312282,1714697457563,12641.25103849,0.00012,2]
[325312283,1714697460459,448.345,0.00011882,2]
[325312285,1714697486378,697.08978152,9.506e-05,2]
[325312286,1714697486584,335.15344859,0.00012,4]
[325312287,1714697528760,288.81884776,0.0001,2]
[325312289,1714697552205,15425.71747616,0.0001,2]
[325312290,1714697553532,155.1817342,0.00011882,2]
[325312294,1714698066036,-200.0,0.00012896,2]
[325312295,1714698066058,-200.0,0.00012896,2]
[325312296,1714698066087,-168.72916332,0.000129,2]
[325312297,1714698066108,-2419.22150125,0.000129,2]
[325312298,1714698066130,-2748.27333413,0.000129,2]
[325312299,1714698066151,-730.49,0.0001299,2]
[325312300,1714698066174,-730.49,0.0001299,2]
[325312301,1714698066195,-730.49,0.0001299,2]
[325312302,1714698066216,-730.49,0.0001299,2]
[325312303,1714698066237,-730.49,0.0001299,2]
[325312304,1714698066258,-730.49,0.0001299,2]
[325312305,1714698066279,-730.49,0.0001299,2]
[325312306,1714698066300,-730.49,0.0001299,2]
[325312307,1714698066323,-730.49,0.0001299,2]
[325312308,1714698066345,-730.49,0.0001299,2]
[325312309,1714698066366,-382.95277325,0.00012998,2]
[325312310,1714698066388,-1071.84695952,0.00012999,3]
[325312311,1714698066409,-1071.84695952,0.00012999,3]
[325312312,1714698066434,-917288.11050901,0.00013,2]
[325312341,1714698631907,-7500.0,0.000129,2]
[325312342,1714698631919,-268.0103,0.000129,2]
[325312343,1714698631929,-8944.8861,0.000129,2]
[325312344,1714698631939,-1832.18222276,0.000129,2]
[325312345,1714698631951,-2194.6213,0.000129,2]
[325312346,1714698631962,-414.3882246,0.000129,2]
[325312347,1714698631973,-447.96435383,0.00012998,2]
[325312348,1714698631983,-436.61177619,0.00012998,2]
[325312349,1714698631993,-409.3828276,0.00012998,2]
[325312350,1714698632003,-359.94935373,0.00012998,2]
[325312351,1714698632012,-90214.93343053,0.00012998,2]
[325312352,1714698632022,-826.4768123,0.00012998,2]
[325312353,1714698632032,-155.31169365,0.00012999,2]
[325312354,1714698632044,-155.5035725,0.00012999,2]
[325312355,1714698632055,-155.0,0.00012999,2]
[325312356,1714698632065,-186.95154128,0.00012999,2]
[325312357,1714698632075,-155.45060426,0.00012999,2]
[325312358,1714698632086,-276.22985248,0.00012999,2]
[325312359,1714698632096,-158.6662864,0.00012999,2]
[325312360,1714698632107,-167.58233418,0.00012999,2]
[325312361,1714698632117,-408.44498467,0.00012999,2]
[325312362,1714698632127,-198928.131645,0.00013,2]
[325312363,1714698632177,-7057.21140862,0.00013,2]
[325312364,1714698632190,-1587.52669612,0.00013,2]
[325312394,1714698638329,-32850.7657889,0.00013,2]
[325312395,1714698638341,-41636.998299,0.00013,2]
[325312396,1714698638375,-2598.47316635,0.00013,2]
[325312400,1714698640041,-271245.71546002,0.00013,2]
[325312401,1714698640216,-4.522e-05,0.00013,2]
[325312402,1714698640280,-4299.74139547,0.00013,2]
[325312403,1714698640293,-2111.66186506,0.00013,2]
[325312404,1714698640317,-2642.15021336,0.00013,2]
[325312405,1714698640329,-286.9036036,0.00013,2]
[325312406,1714698640340,-415.59343947,0.00013,2]
[325312407,1714698640355,-332.88138164,0.00013,2]
[325312408,1714698640419,-3056.75,0.00013,2]
[325312426,1714698643043,-862.0099998,0.00013,2]
[325312427,1714698643055,-2959.15,0.00013,2]
[325312428,1714698643068,-1716.24579306,0.00013,2]
[325312429,1714698643175,-1839.58850946,0.00013,2]
[325312430,1714698643188,-1376.75454,0.00013,2]
[325312431,1714698643301,-3465.7968536,0.00013,2]
[325312432,1714698643313,-85783.91227104,0.00013,2]
[325312433,1714698643327,-1455.0,0.00013,2]
[325312469,1714698646166,-328.01305826,0.00013,2]
[325312470,1714698646207,-387.46157978,0.00013,2]
[325312473,1714698824193,545.97906237,0.000104,2]
[325312484,1714699832412,-364.09927495,0.00012299,2]
[325312486,1714699832422,-200.15475806,0.000123,2]
[325312488,1714699832432,-150.0,0.00012786,2]
[325312489,1714699832442,-14.66714131,0.00012805,2]
[325312491,1714699832454,-135.33285869,0.00012805,2]
[325312492,1714699832463,-135.96714121,0.00012868,2]
[325312493,1714699832476,-60.94553137,0.00012868,2]
[325312494,1714699832487,-251.74141407,0.00012869,2]
[325312495,1714699832497,-200.0,0.00012896,2]
[325312496,1714699832508,-500.0,0.00012896,2]
[325312497,1714699832520,-150.0,0.00012899,2]
[325312498,1714699832531,-21768.23301423,0.00012899,2]
[325312499,1714699832540,-6483.617,0.000129,2]
[325312500,1714699832550,-18502.1018,0.000129,2]
[325312501,1714699832560,-500.0,0.000129,2]
[325312502,1714699832570,-1000.0,0.000129,2]
[325312503,1714699832580,-181.38160287,0.000129,2]
[325312504,1714699832591,-182.04506518,0.000129,2]
[325312505,1714699832601,-159.46306348,0.000129,2]
[325312506,1714699832611,-200.12347894,0.000129,2]
[325312507,1714699832620,-452.42409088,0.000129,2]
[325312508,1714699832630,-7500.0,0.000129,2]
[325312509,1714699832639,-870.18759989,0.000129,2]
[325312510,1714699832649,-591.93,0.000129,2]
[325312511,1714699832659,-321.90018781,0.000129,2]
[325312512,1714699832668,-2433.59189132,0.000129,2]
[325312513,1714699832679,-2433.59189132,0.000129,2]
[325312514,1714699832689,-150.99,0.0001299,2]
[325312515,1714699832699,-499.99,0.0001299,2]
[325312516,1714699832708,-6513.83,0.0001299,2]
[325312518,1714699832718,-427.33773077,0.00012992,2]
[325312523,1714699832828,-372.72261608,0.00012998,2]
[325312524,1714699832839,-12620.73606875,0.00012998,2]
[325312525,1714699832849,-621.89438746,0.00012998,2]
[325312527,1714699832859,-155.0,0.00012998,2]
[325312529,1714699832869,-1089.54764354,0.00012998,2]
[325312531,1714699832878,-211.68428899,0.00012998,2]
[325312532,1714699832888,-1854.849015,0.00012998,2]
[325312533,1714699832898,-1775.8578558,0.00012998,2]
[325312534,1714699832907,-466.91876197,0.00012998,2]
[325312536,1714699832917,-373.71237473,0.00012998,2]
[325312538,1714699832927,-342.94151451,0.00012998,2]
[325312540,1714699832936,-362.02040421,0.00012998,2]
[325312541,1714699832946,-208.03309031,0.00012999,2]
[325312542,1714699832956,-155.0,0.00012999,2]
[325312543,1714699832966,-409.33891891,0.00012999,2]
[325312544,1714699832976,-781.89269474,0.00012999,2]
[325312545,1714699832986,-787.72595761,0.00012999,2]
[325312546,1714699832996,-70855.95842754,0.00013,2]
[325312547,1714699833011,-417.6714971,0.00013,2]
[325312548,1714699833023,-836.74867698,0.00013,2]
[325312549,1714699833065,-500.05224,0.00013,2]
[325312550,1714699833077,-194009.14244871,0.00013,2]
[325312551,1714699833148,-416.72332688,0.00013,2]
[325312552,1714699833160,-373.83348833,0.00013,2]
[325312558,1714699838637,-361.675,0.000129,2]
[325312559,1714699838651,-1023.5008851,0.000129,2]
[325312560,1714699838664,-358.48667185,0.000129,2]
[325312561,1714699838676,-756.33744305,0.000129,2]
[325312562,1714699838686,-172.49965026,0.0001299,2]
[325312563,1714699838695,-5779175.26469954,0.00013,2]
[325312564,1714699838705,-598.525,0.00013,2]
[325312565,1714699838715,-150.0,0.00013,2]
[325312566,1714699838724,-442.02192,0.00013,2]
[325312567,1714699838733,-250.0,0.00013311,2]
[325312568,1714699838742,-165.3,0.00013428,2]
[325312569,1714699838752,-150.0,0.00013585,2]
[325312570,1714699838761,-200.0,0.00013699,2]
[325312571,1714699838772,-23900.0,0.00013708,2]
[325312572,1714699838781,-153.63,0.00013846,2]
[325312573,1714699838791,-153.63,0.00014027,2]
[325312574,1714699838800,-763.82,0.00014035,2]
[325312576,1714699838809,-250.0,0.00014181,2]
[325312577,1714699838819,-153.63,0.00014207,2]
[325312578,1714699838828,-153.63,0.00014388,2]
[325312579,1714699838838,-153.63,0.00014568,2]
[325312580,1714699838847,-174.19,0.00015247,2]
[325312581,1714699838856,-300.58,0.00015278,2]
[325312582,1714699838865,-150.0,0.00015278,2]
[325312583,1714699838875,-419.52,0.00015278,2]
[325312584,1714699838885,-522.52,0.00015278,2]
[325312585,1714699838894,-419.52,0.00015278,2]
[325312586,1714699838903,-522.52,0.00015278,2]
[325312587,1714699838912,-870.18759989,0.00015468,2]
[325312588,1714699838922,-419.43,0.00015578,2]
[325312589,1714699838931,-522.41,0.00015578,2]
[325312590,1714699838940,-162.95,0.00015578,2]
[325312591,1714699838949,-763.82,0.00015789,2]
[325312592,1714699838959,-150.0,0.00016,2]
[325312593,1714699838968,-167.44171008,0.00016062,2]
[325312594,1714699838977,-159.46306348,0.00016233,2]
[325312595,1714699838987,-171.06509828,0.00016555,2]
[325312596,1714699838996,-1000.0,0.00016742,2]
[325312597,1714699839006,-157.52757104,0.00016825,2]
[325312598,1714699839015,-2430.0,0.000173,5]
[325312599,1714699839024,-452.42409087,0.00017395,2]
[325312600,1714699839034,-763.82,0.00017544,2]
[325312601,1714699839043,-151.68280089,0.0001761,2]
[325312602,1714699839181,-450.0,0.00018,3]
[325312603,1714699839201,-442.02193,0.00018,2]
[325312604,1714699839210,-200.0,0.00018024,2]
[325312605,1714699839220,-870.18759989,0.00018037,2]
[325312606,1714699839229,-502.0,0.00018069,2]
[325312607,1714699839239,-161.65,0.0001851,2]
[325312608,1714699839248,-718.09,0.00018526,2]
[325312609,1714699839258,-158.18617805,0.00018606,2]
[325312610,1714699839268,-667.76,0.00018616,2]
[325312611,1714699839279,-23371.48920665,0.00019,5]
[325312612,1714699839289,-151.68280089,0.00019081,2]
[325312613,1714699839298,-161.94,0.00019135,2]
[325312614,1714699839308,-500.0,0.00019178,2]
[325312615,1714699839317,-500.0,0.00019178,2]
[325312616,1714699839327,-414.31920907,0.00019178,2]
[325312617,1714699839336,-614.15537882,0.00019178,2]
[325312618,1714699839346,-500.0,0.00019178,2]
[325312619,1714699839355,-500.0,0.00019178,2]
[325312620,1714699839365,-296.07649541,0.00019178,2]
[325312621,1714699839375,-1315.77,0.000192,2]
[325312622,1714699839384,-939.79,0.000192,2]
[325312623,1714699839394,-763.82,0.00019298,2]
[325312624,1714699839403,-1773.27,0.000195,2]
[325312625,1714699839413,-159.46306348,0.00019567,2]
[325312626,1714699839422,-151.68280089,0.00019603,2]
[325312627,1714699839432,-197.68,0.00019753,2]
[325312628,1714699839442,-151.4079542,0.000199,2]
[325312629,1714699839451,-151.4079542,0.000199,2]
[325312630,1714699839461,-151.4079542,0.000199,2]
[325312631,1714699839470,-151.4079542,0.000199,2]
[325312632,1714699839480,-151.4079542,0.000199,2]
[325312633,1714699839490,-151.4079542,0.000199,2]
[325312634,1714699839502,-151.4079542,0.000199,2]
[325312635,1714699839511,-271.57604761,0.0002,2]
[325312636,1714699839522,-500.0,0.0002,3]
[325312637,1714699839532,-200.0,0.00020588,2]
[325312638,1714699839542,-1000.0,0.00020588,2]
[325312639,1714699839551,-500.0,0.00020588,2]
[325312640,1714699839561,-200.0,0.00020588,2]
[325312641,1714699839572,-870.18759989,0.00020605,2]
[325312642,1714699839583,-151.4079542,0.00020717,2]
[325312643,1714699839593,-718.09,0.00020842,2]
[325312644,1714699839603,-155.0,0.000209,2]
[325312645,1714699839612,-2229.28,0.00020951,2]
[325312646,1714699839622,-11271.69,0.00020951,2]
[325312647,1714699839631,-29999.99,0.00020951,2]
[325312648,1714699839640,-155.78528381,0.00021035,2]
[325312649,1714699839649,-763.82,0.00021053,2]
[325312650,1714699839659,-1000.0,0.000214,2]
[325312651,1714699839668,-223.0,0.000214,2]
[325312652,1714699839678,-352.0,0.000214,2]
[325312653,1714699839687,-155.42,0.00021644,2]
[325312654,1714699839696,-194.86,0.00021644,2]
[325312655,1714699839705,-421.0,0.00021746,2]
[325312656,1714699839714,-150.0,0.00021746,2]
[325312657,1714699839723,-215.0,0.00021746,2]
[325312658,1714699839733,-444.0,0.00021746,2]
[325312659,1714699839742,-2298.0,0.00021746,2]
[325312660,1714699839752,-1395.0,0.00021746,2]
[325312661,1714699839761,-5736.0,0.00021746,2]
[325312662,1714699839771,-462.0,0.00021746,2]
[325312663,1714699839780,-970.0,0.00021746,2]
[325312664,1714699839789,-5920.42,0.00021746,2]
[325312665,1714699839799,-544.097,0.00021746,2]
[325312666,1714699839808,-1262.744,0.00021746,2]
[325312667,1714699839817,-1233.742,0.00021746,2]
[325312668,1714699839826,-2300.098,0.00021746,2]
[325312669,1714699839836,-37903.378,0.00021746,2]
[325312670,1714699839845,-151.4079542,0.00021833,2]
[325312671,1714699839855,-452.42409087,0.0002189,2]
[325312672,1714699839864,-182.04506518,0.000219,2]
[325312673,1714699839874,-939.79,0.000219,2]
[325312674,1714699839883,-751.07831527,0.000219,2]
[325312675,1714699839892,-250.0,0.00021918,2]
[325312676,1714699839902,-150.0,0.00021918,2]
[325312677,1714699839911,-150.0,0.00021918,2]
[325312678,1714699839921,-150.0,0.00021918,2]
[325312679,1714699839930,-550.0,0.00022,3]
[325312680,1714699839940,-167.44171008,0.00022195,2]
[325312681,1714699839949,-161.94,0.00022324,2]
[325312682,1714699839959,-155.03582126,0.00022394,2]
[325312683,1714699839969,-167.44171008,0.00022524,2]
[325312684,1714699839979,-159.46306348,0.000229,2]
[325312685,1714699839989,-151.4079542,0.0002295,2]
[325312686,1714699839999,-442.02193,0.00023,2]
[325312687,1714699840008,-161.65,0.00023137,2]
[325312688,1714699840020,-718.09,0.00023158,2]
[325312689,1714699840030,-870.18759989,0.00023174,2]
[325312690,1714699840039,-713.70407169,0.00023392,2]
[325312691,1714699840049,-4029.0,0.000237,3]
[325312692,1714699840059,-1014.0,0.000237,2]
[325312693,1714699840068,-1004.0,0.000237,2]
[325312694,1714699840078,-150.0,0.00023979,10]
[325312695,1714699840088,-150.0,0.00023979,10]
[325312696,1714699840098,-150.0,0.00023979,10]
[325312697,1714699840107,-641159.19632346,0.0002398,2]
[325312698,1714699840117,-1315.77,0.00024,2]
[325312699,1714699840126,-600.0,0.00024,3]
[325312700,1714699840137,-151.4079542,0.00024067,2]
[325312701,1714699840147,-1000.0,0.00024433,2]
[325312702,1714699840156,-154.98380151,0.00024615,2]
[325312703,1714699840166,-888.0,0.00024657,2]
[325312704,1714699840176,-666.0,0.00024657,2]
[325312705,1714699840186,-151.68280089,0.00024734,2]
[325312706,1714699840196,-462.0,0.00024746,2]
[325312707,1714699840206,-154.32744197,0.00024755,2]
[325312708,1714699840216,-5000.0,0.00025,2]
[325312709,1714699840226,-155.0,0.00025,2]
[325312710,1714699840236,-330.83873912,0.00025,2]
[325312711,1714699840245,-151.4079542,0.00025183,2]
[325312712,1714699840255,-500.0,0.00025293,2]
[325312713,1714699840268,-500.0,0.00025293,2]
[325312714,1714699840278,-500.0,0.00025293,2]
[325312715,1714699840288,-500.0,0.00025293,2]
[325312718,1714699840299,-500.0,0.00025293,2]
[325312720,1714699840308,-500.0,0.00025293,2]
[325312721,1714699840317,-500.0,0.00025293,2]
[325312722,1714699840326,-500.0,0.00025293,2]
[325312723,1714699840336,-500.0,0.00025293,2]
[325312724,1714699840345,-500.0,0.00025293,2]